{"text_format":"3","workbook":"xlsx","n_sheets":2,"sheets":["Registo de Conf. de Presenças","Resumo de Conf. de Presenças"],"not_rendered":{"charts":2,"defined_names":22},"read":"whole","date_system":"1900"}

{"sheet":"Registo de Conf. de Presenças","index":0,"n_rows":15,"n_cols":15,"rows_kept":15,"merged":[[0,3,0,4],[0,5,0,7],[1,3,1,14]]}
[{"$nulls":5},"RESUMO DE CONF. DE PRESENÇAS"]
[null,"DATA DO CASAMENTO",null,"registo de convites de casamento"]
[null,{"$f":"TODAY()+283","v":"2019-06-24"},null,"NOME DO CONVIDADO","ENVIADO?","CONFIRMAÇÃO DE PRESENÇA","PARTICIPANTES","CONVIDADO","RELAÇÃO","ENDEREÇO","LOCALIDADE","DISTRITO","CÓDIGO POSTAL","TELEFONE","E-MAIL DE CONTACTO"]
[null,"DIAS RESTANTES",null,"Nome 1","Sim","Sim",1,"Futuro cônjuge 1","Irmão","Endereço","Localidade","Distrito","Código Postal","Telefone","alguem@example.com"]
[null,{"$f":"DiasAtéÀData","v":283},null,"Nome 2","Sim","Não",3,"Futuro cônjuge 1","Amigo","Endereço","Localidade","Distrito","Código Postal","Telefone","alguem@example.com"]
[null,"VÃO",null,"Nome 3","Sim","Sim",1,"Outro","Amigo","Endereço","Localidade","Distrito","Código Postal","Telefone","alguem@example.com"]
[null,{"$f":"TotalVaiComparecer","v":12},null,"Nome 4","Sim","Não",2,"Futuro cônjuge 2","Amigo","Endereço","Localidade","Distrito","Código Postal","Telefone","alguem@example.com"]
[null,"NÃO VÃO",null,"Nome 5","Sim","Sim",2,"Futuro cônjuge 2","Amigo","Endereço","Localidade","Distrito","Código Postal","Telefone","alguem@example.com"]
[null,{"$f":"TotalNãoVaiComparecer","v":6},null,"Nome 6","Sim","Incerto",null,"Outro","Amigo","Endereço","Localidade","Distrito","Código Postal","Telefone","alguem@example.com"]
[null,"POR CONFIRMAR",null,"Nome 7","Sim","Sim",2,"Futuro cônjuge 2","Amigo","Endereço","Localidade","Distrito","Código Postal","Telefone","alguem@example.com"]
[null,{"$f":"PresençasPorConfirmar","v":1},null,"Nome 8","Sim","Não",1,"Outro","Amigo","Endereço","Localidade","Distrito","Código Postal","Telefone","alguem@example.com"]
[{"$nulls":3},"Nome 9","Sim","Sim",4,"Futuro cônjuge 1","Amigo","Endereço","Localidade","Distrito","Código Postal","Telefone","alguem@example.com"]
[{"$nulls":3},"Nome 10","Sim","Sim",2,"Futuro cônjuge 1","Amigo","Endereço","Localidade","Distrito","Código Postal","Telefone","alguem@example.com"]
[{"$nulls":3},"Nome 11","Sim",null,null,"Futuro cônjuge 2","Irmão","Endereço","Localidade","Distrito","Código Postal","Telefone","alguem@example.com"]
[{"$nulls":3},"TOTAIS:",{"$f":"COUNTIF('Registo de Conf. de Presenças'!$E$4:$E$14,\"Sim\")","v":11},{"$f":"COUNTA('Registo de Conf. de Presenças'!$F$4:$F$14)","v":10},{"$f":"SUBTOTAL(109,tblConvites[PARTICIPANTES])","v":18}]

{"sheet":"Resumo de Conf. de Presenças","index":1,"n_rows":11,"n_cols":15,"rows_kept":11,"merged":[[0,3,0,4],[0,5,0,8],[1,3,1,11],[2,3,6,3],[2,4,6,4],[7,3,11,3],[7,4,11,4]]}
[{"$nulls":3},"REGISTO DE CONF. DE PRESENÇAS"]
[null,"DATA DO CASAMENTO",null,"resumo de confirmação de presenças",{"$nulls":10},"notas"]
[null,{"$f":"DataDoCasamento","v":"2019-06-24"},null,"SIM","O gráfico de barras agrupadas a apresentar os tipos de Convidados cuja resposta à Confirmação de Presença é Sim encontra-se nesta célula."]
[null,"DIAS RESTANTES",{"$nulls":3},"OUTRO",{"$f":"IFERROR(SUMIFS(tblConvites[PARTICIPANTES],tblConvites[CONVIDADO],\"=Outro\",tblConvites[CONFIRMAÇÃO DE PRESENÇA],\"Sim\"),0)","v":1},{"$f":"tblConvites[[#Totals],[ENVIADO?]]","v":11}]
[null,{"$f":"DiasAtéÀData","v":283},{"$nulls":3},"FUTURO CÔNJUGE 2",{"$f":"IFERROR(SUMIFS(tblConvites[PARTICIPANTES],tblConvites[CONVIDADO],\"=Futuro cônjuge 2\",tblConvites[CONFIRMAÇÃO DE PRESENÇA],\"Sim\"),0)","v":4},{"$f":"tblConvites[[#Totals],[ENVIADO?]]","v":11}]
[null,"VÃO",{"$nulls":3},"FUTURO CÔNJUGE 1",{"$f":"IFERROR(SUMIFS(tblConvites[PARTICIPANTES],tblConvites[CONVIDADO],\"=Futuro cônjuge 1\",tblConvites[CONFIRMAÇÃO DE PRESENÇA],\"Sim\"),0)","v":7},{"$f":"tblConvites[[#Totals],[ENVIADO?]]","v":11}]
[null,{"$f":"TotalVaiComparecer","v":12}]
[null,"NÃO VÃO",null,"NÃO","O gráfico de barras agrupadas a apresentar os tipos de Convidados cuja resposta à Confirmação de Presença é Não encontra-se nesta célula."]
[null,{"$f":"TotalNãoVaiComparecer","v":6},{"$nulls":3},"OUTRO",{"$f":"IFERROR(SUMIFS(tblConvites[PARTICIPANTES],tblConvites[CONVIDADO],\"=Outro\",tblConvites[CONFIRMAÇÃO DE PRESENÇA],\"Não\"),0)","v":1},{"$f":"tblConvites[[#Totals],[ENVIADO?]]","v":11}]
[null,"POR CONFIRMAR",{"$nulls":3},"FUTURO CÔNJUGE 2",{"$f":"IFERROR(SUMIFS(tblConvites[PARTICIPANTES],tblConvites[CONVIDADO],\"=Futuro cônjuge 2\",tblConvites[CONFIRMAÇÃO DE PRESENÇA],\"Não\"),0)","v":2},{"$f":"tblConvites[[#Totals],[ENVIADO?]]","v":11}]
[null,{"$f":"PresençasPorConfirmar","v":1},{"$nulls":3},"FUTURO CÔNJUGE 1",{"$f":"IFERROR(SUMIFS(tblConvites[PARTICIPANTES],tblConvites[CONVIDADO],\"=Futuro cônjuge 1\",tblConvites[CONFIRMAÇÃO DE PRESENÇA],\"Não\"),0)","v":3},{"$f":"tblConvites[[#Totals],[ENVIADO?]]","v":11}]